[Event "Festival Groningen-A 2024"]
[Site "Groningen"]
[Date "2024.12.27"]
[Round "6.1"]
[White "Schoppen, Casper"]
[Black "Narayanan S L"]
[Result "1/2-1/2"]
[ECO "E20"]
[WhiteElo "2539"]
[BlackElo "2647"]
[Annotator "TA"]
[PlyCount "42"]
[EventDate "2024.12.21"]
[EventType "swiss"]
[EventCountry "NED"]
[SourceTitle "playchess.com"]
[Source "ChessBase"]
[SourceQuality "1"]
[TimeControl "40/5400+30:1800+30"]

{[%evp 15,42,0,12,14,8,0,0,0,12,21,20,2,0,0,0,0,15,21,12,-6,-6,-7,0,0,0,-4,0,0,0]} 1. d4 {[%emt 0:00:23]} Nf6 {[%emt 0:00:09]} 2. c4 {[%emt 0:00:55]} e6 {[%emt 0:00:13]} 3. Nc3 {[%emt 0:03:14]} Bb4 {[%emt 0:00:09]} 4. g3 {[%emt 0:02:39]} Bxc3+ {[%emt 0:02:23]} 5. bxc3 {[%emt 0:00:08]} d6 {[%emt 0:00:05]} 6. Bg2 {[%emt 0:01:35]} Nc6 {[%emt 0:00:28]} 7. Nf3 {[%emt 0:00:52]} O-O {[%emt 0:04:45]} 8. O-O {[%emt 0:00:38]} Rb8 {[%emt 0:00:56]} 9. Nd2 {[%emt 0:03:15]} Na5 {[%emt 0:21:54]} 10. Ba3 {[%emt 0:04:32]} b6 {[%emt 0:00:07][%cal Bb7b6,Bb6a5,Ba5a4][%mdl 32]} 11. Bb4 {[%emt 0:10:37]} c5 {[%emt 0:10:10]} 12. Bxa5 {[%emt 0:00:58]} bxa5 {[%emt 0:00:05]} 13. Qa4 {[%emt 0:03:06]} Bd7 {[%emt 0:00:18]} 14. Qa3 {[%emt 0:00:20]} Qc7 {[%emt 0:01:46]} 15. dxc5 {[%emt 0:01:45]} Qxc5 {[%emt 0:00:41]} 16. Qxc5 {[%emt 0:00:08]} dxc5 {[%emt 0:00:04]} 17. Nb3 {[%emt 0:01:49][%cal Of1b1]} a4 {[%emt 0:01:32]} 18. Nxc5 {[%emt 0:00:25]} Rfc8 {[%emt 0:00:08]} 19. Nxd7 {[%emt 0:05:25]} Nxd7 {[%emt 0:00:09]} 20. Rab1 {[%emt 0:01:53]} Kf8 {[%emt 0:02:45]} 21. Rfd1 {[%emt 0:15:22] Threatens to win with Rxb8.} Rxb1 {[%emt 0:09:30]} 1/2-1/2

[Event "Festival Groningen-A 2024"]
[Site "Groningen"]
[Date "2024.12.27"]
[Round "6.2"]
[White "Beerdsen, Thomas"]
[Black "Maatman, Nick"]
[Result "1/2-1/2"]
[ECO "C42"]
[WhiteElo "2502"]
[BlackElo "2375"]
[Annotator "TA"]
[PlyCount "58"]
[EventDate "2024.12.21"]
[EventType "swiss"]
[EventCountry "NED"]
[SourceTitle "playchess.com"]
[Source "ChessBase"]
[SourceQuality "1"]
[TimeControl "40/5400+30:1800+30"]

{[%evp 16,58,43,13,16,16,16,7,9,0,20,0,0,0,0,-5,-12,-24,-15,-14,0,0,0,0,0,0,0,0,0,0,-2,0,0,-10,-17,-26,0,-34,0,0,0,-37,0,-7,0]} 1. e4 {[%emt 0:00:04]} e5 {[%emt 0:02:41]} 2. Nf3 {[%emt 0:00:27]} Nf6 {[%emt 0:00:06][%cal Bg8f6,Bf6e4,Be4c3][%mdl 32]} 3. Nxe5 {[%emt 0:03:03]} d6 {[%emt 0:00:19]} 4. Nf3 {[%emt 0:00:07]} Nxe4 {[%emt 0:00:03]} 5. d4 {[%emt 0:03:27]} d5 {[%emt 0:00:36]} 6. Bd3 {[%emt 0:00:27]} Be7 {[%emt 0:00:08]} 7. O-O {[%emt 0:01:12]} Nc6 {[%emt 0:00:06]} 8. Re1 {[%emt 0:14:43]} Bf5 {[%emt 0:08:23]} 9. Nc3 {[%emt 0:07:55]} Nxc3 {[%emt 0:01:17]} 10. bxc3 {[%emt 0:01:03]} Bxd3 {[%emt 0:01:13]} 11. Qxd3 {[%emt 0:02:19]} O-O {[%emt 0:00:14]} 12. Rb1 {[%emt 0:05:57]} b6 {[%emt 0:18:01]} 13. Qf5 {[%emt 0:10:49]} g6 {[%emt 0:05:49]} 14. Qh3 {[%emt 0:00:22]} Qc8 {[%emt 0:19:12]} 15. Qxc8 {[%emt 0:12:05]} Raxc8 {[%emt 0:26:44]} 16. Ne5 {[%emt 0:00:14]} Nxe5 {[%emt 0:00:12]} 17. Rxe5 {[%emt 0:00:07]} Rfe8 {[%emt 0:00:15]} 18. Rxd5 {[%emt 0:03:21]} Bd6 {[%emt 0:09:07] Inhibits Re5.} 19. Kf1 {[%emt 0:01:36] Repels Re1+} Re6 {[%emt 0:00:54][%cal Oc7c6] Threatening ...c6!.} 20. Rdb5 $1 {[%emt 0:00:57]} c5 {[%emt 0:00:13]} 21. Be3 {[%emt 0:01:45]} cxd4 {[%emt 0:00:23]} 22. Bxd4 {[%emt 0:00:09]} Rc4 {[%emt 0:00:55]} 23. Rd5 {[%emt 0:06:51]} Kf8 {[%emt 0:00:03]} 24. h3 {[%emt 0:02:14]} Ke7 {[%emt 0:00:19]} 25. g4 {[%emt 0:00:51]} Ra4 {[%emt 0:00:57][%mdl 1024] Black has compensation.} 26. Rb2 {[%emt 0:00:37]} Ba3 {[%emt 0:00:25]} 27. Rb3 {[%emt 0:01:11]} Bd6 {[%emt 0:00:02]} 28. Rb2 {[%emt 0:00:38]} Ba3 {[%emt 0:00:09]} 29. Rb3 {[%emt 0:00:15]} Bd6 {[%emt 0:00:05]} 1/2-1/2

[Event "Festival Groningen-A 2024"]
[Site "Groningen"]
[Date "2024.12.27"]
[Round "6.3"]
[White "Pham, Khoi"]
[Black "Poetsch, Hagen"]
[Result "1/2-1/2"]
[ECO "E04"]
[WhiteElo "2285"]
[BlackElo "2491"]
[Annotator "TA"]
[PlyCount "59"]
[EventDate "2024.12.21"]
[EventType "swiss"]
[EventCountry "NED"]
[SourceTitle "playchess.com"]
[Source "ChessBase"]
[SourceQuality "1"]
[TimeControl "40/5400+30:1800+30"]

{[%evp 24,59,33,31,30,30,29,31,32,35,35,29,39,37,30,36,36,31,37,37,42,30,30,32,34,2,8,2,2,0,0,0,0,0,0,0,0,0]} 1. d4 {[%emt 0:00:04]} Nf6 {[%emt 0:00:06]} 2. c4 {[%emt 0:00:10]} e6 {[%emt 0:00:04]} 3. Nf3 {[%emt 0:00:04]} d5 {[%emt 0:00:05]} 4. g3 {[%emt 0:00:04]} dxc4 {[%emt 0:00:10]} 5. Bg2 {[%emt 0:00:05]} c5 {[%emt 0:00:06]} 6. O-O {[%emt 0:00:50]} Nc6 {[%emt 0:00:04]} 7. Qa4 {[%emt 0:00:38]} Bd7 {[%emt 0:00:06]} 8. Qxc4 {[%emt 0:00:07]} cxd4 {[%emt 0:00:57]} 9. Nxd4 {[%emt 0:01:04]} Rc8 {[%emt 0:00:06]} 10. Nc3 {[%emt 0:01:05]} Nxd4 {[%emt 0:00:06]} 11. Qxd4 {[%emt 0:00:04]} Bc5 {[%emt 0:00:13]} 12. Qh4 {[%emt 0:00:18]} Bc6 {[%emt 0:00:06]} 13. Rd1 {[%emt 0:00:56]} Qa5 {[%emt 0:00:20]} 14. Bg5 {[%emt 0:02:38]} Be7 {[%emt 0:00:52]} 15. Bxc6+ {[%emt 0:03:54]} Rxc6 {[%emt 0:00:06]} 16. Ne4 {[%emt 0:00:35]} Qe5 {[%emt 0:00:15]} 17. Nxf6+ {[%emt 0:01:08]} Bxf6 {[%emt 0:00:07]} 18. Bxf6 {[%emt 0:00:05]} Qxf6 {[%emt 0:00:07]} 19. Qxf6 {[%emt 0:00:09]} gxf6 {[%emt 0:00:05]} 20. Rac1 {[%emt 0:00:04]} Rxc1 {[%emt 0:00:08]} 21. Rxc1 $14 {[%emt 0:00:01][%mdl 4096] Endgame KR-KR} Kd7 {[%emt 0:00:24] Prevents Rc8} 22. Rc4 {[%emt 0:03:57]} f5 {[%emt 0:00:09]} 23. Kg2 {[%emt 0:04:21]} b5 {[%emt 0:08:07]} 24. Rb4 {[%emt 0:08:12]} a6 {[%emt 0:18:52]} 25. a4 {[%emt 0:20:11]} bxa4 {[%emt 0:00:59]} 26. Rxa4 {[%emt 0:02:41]} Rb8 {[%emt 0:00:29]} 27. Rxa6 {[%emt 0:00:49]} Rxb2 {[%emt 0:00:07]} 28. Ra7+ {[%emt 0:02:19]} Ke8 {[%emt 0:00:07]} 29. Ra8+ {[%emt 0:00:09]} Ke7 {[%emt 0:00:05]} 30. e3 {[%emt 0:01:09]} 1/2-1/2

[Event "Festival Groningen-A 2024"]
[Site "Groningen"]
[Date "2024.12.27"]
[Round "6.4"]
[White "Mitusov, Semen"]
[Black "Van Foreest, Machteld"]
[Result "0-1"]
[ECO "B12"]
[WhiteElo "2465"]
[BlackElo "2309"]
[Annotator "TA"]
[PlyCount "74"]
[EventDate "2024.12.21"]
[EventType "swiss"]
[EventCountry "NED"]
[SourceTitle "playchess.com"]
[Source "ChessBase"]
[SourceQuality "1"]
[TimeControl "40/5400+30:1800+30"]

{[%evp 9,74,13,55,21,27,23,27,23,20,14,19,-33,0,-22,0,-12,0,-2,-13,-4,-15,-27,-30,-32,0,0,0,0,0,0,0,-72,68,69,75,84,86,67,80,88,82,36,67,75,110,124,117,97,107,97,145,97,95,96,96,108,107,0,0,-525,-514,-1381,-852,-2168,-2114,-1502,-1502]} 1. e4 {[%emt 0:00:03]} c6 {[%emt 0:03:02]} 2. d4 {[%emt 0:00:53]} d5 {[%emt 0:00:18]} 3. e5 {[%emt 0:00:29]} Bf5 {[%emt 0:00:14]} 4. Nf3 {[%emt 0:01:31]} e6 {[%emt 0:05:05]} 5. Be2 {[%emt 0:00:05]} Bg4 {[%emt 0:05:37]} 6. Nbd2 {[%emt 0:03:41]} c5 {[%emt 0:08:58]} 7. O-O {[%emt 0:06:02]} Nc6 {[%emt 0:01:46]} 8. h3 {[%emt 0:07:43]} Bxf3 {[%emt 0:06:26]} 9. Nxf3 {[%emt 0:01:33]} cxd4 {[%emt 0:03:58]} 10. a3 {[%emt 0:05:13]} (10. Nxd4 $11 Bc5 11. Nxc6 bxc6 12. Bd3) 10... Nge7 {[%emt 0:04:42]} 11. Re1 {[%emt 0:04:34]} Qc7 {[%emt 0:06:57]} 12. Bd3 {[%emt 0:09:51]} Ng6 {[%emt 0:02:56]} 13. Qe2 {[%emt 0:01:33]} Be7 {[%emt 0:01:51]} 14. b4 {[%emt 0:00:51]} a6 {[%emt 0:00:15]} 15. Bd2 {[%emt 0:01:13]} O-O {[%emt 0:01:22]} 16. h4 {[%emt 0:00:05][%cal Bh3h4,Bh4h5][%mdl 32]} f5 {[%emt 0:10:05]} (16... Nxh4 $2 17. Nxh4 Bxh4 18. Qh5 Bxf2+ 19. Kxf2 $18) 17. exf6 {[%emt 0:01:25]} Rxf6 {[%emt 0:00:09]} 18. Bg5 {[%emt 0:22:30]} Nf4 {[%emt 0:03:30]} 19. Qd2 {[%emt 0:00:05]} Nxd3 {[%emt 0:11:06]} 20. cxd3 {[%emt 0:00:30]} (20. Qxd3 $11 {remains equal.} Rg6 21. Nxd4 Nxd4 22. Qxd4) 20... Rg6 {[%emt 0:05:43]} (20... Rxf3 $1 $17 21. gxf3 e5) 21. h5 $14 {[%emt 0:03:10]} Bxg5 {[%emt 0:00:05]} 22. Nxg5 {[%emt 0:00:05]} Rf6 {[%emt 0:01:21]} 23. Rxe6 {[%emt 0:05:16]} Rxe6 {[%emt 0:01:10]} 24. Nxe6 {[%emt 0:00:02]} Qe7 {[%emt 0:01:32]} 25. Nc5 {[%emt 0:10:00]} (25. Nf4 $16) 25... Ne5 {[%emt 0:01:06]} 26. Qf4 $1 {[%emt 0:02:37]} b6 {[%emt 0:06:31]} 27. Qxd4 $1 {[%emt 0:01:01]} Rd8 {[%emt 0:00:02]} 28. Nb3 {[%emt 0:00:54]} (28. Re1 $2 Nf3+ (28... bxc5 $2 29. Rxe5 cxd4 30. Rxe7 $18) 29. gxf3 Qxe1+ 30. Kg2 bxc5 $19) 28... Qg5 {[%emt 0:00:34] [#]} 29. Nd2 $1 {[%emt 0:05:43] Dodges Nf3+} (29. Qxb6 $6 Nf3+ 30. Kf1 Nh2+ 31. Ke2 Re8+ 32. Kd1 Qxg2 $11 (32... Qxh5+ 33. f3 $19)) 29... Rf8 {[%emt 0:01:38]} ({Black should try} 29... Qxh5 30. Re1 (30. Qxb6 Rf8 $14) 30... Ng4) 30. Re1 {[%emt 0:01:31]} (30. Qxd5+ $142 Rf7 31. f4 Qxf4 32. Rf1 (32. Re1 $2 Qf2+ 33. Kh2 Qh4+ 34. Kg1 Qxe1+ $19) 32... Qe3+ (32... Qxd2 33. Qd8+) 33. Kh1) 30... Ng4 $16 {[%emt 0:00:41]} 31. Re2 {[%emt 0:01:34]} (31. Nf3 $2 Rxf3 32. Qxb6 (32. gxf3 $2 Ne3+ $19) 32... Rf8 $17 (32... Rxd3 33. Re8+ Kf7 34. Qe6#)) 31... Qxh5 {[%emt 0:01:31] [#]} 32. Nf1 $1 {[%emt 0:00:01][%cal Of2f3] Repels Qh2+} (32. Qxb6 $2 Qh2+ 33. Kf1 Qh1#) 32... b5 {[%emt 0:01:09]} 33. Re7 {[%emt 0:01:22]} (33. f3 $16 Nf6 34. Re5) 33... Qg5 $36 {[%emt 0:00:51][%mdl 2048] Black is more active.} 34. Rd7 $2 {[%emt 0:00:34][%mdl 8192]} (34. Re2 $11 {and White stays safe.}) 34... Rxf2 $19 {[%emt 0:00:42]} 35. Ne3 {[%emt 0:03:47]} (35. Rd8+ $142 Qxd8 36. Qxg4) 35... Nxe3 {[%emt 0:00:32][%csl Ge3,Gf2][%cal Rg5g2]} ({Weaker is} 35... Qxe3 36. Qxg7#) 36. Kxf2 {[%emt 0:00:15]} Qxg2+ {[%emt 0:00:08]} 37. Kxe3 {[%emt 0:00:07]} Qg1+ {[%emt 0:00:02]} 0-1

[Event "Festival Groningen-A 2024"]
[Site "Groningen"]
[Date "2024.12.27"]
[Round "6.5"]
[White "Koster, Ramon"]
[Black "De Winter, Arthur"]
[Result "0-1"]
[ECO "C01"]
[WhiteElo "2330"]
[BlackElo "2446"]
[Annotator "TA"]
[PlyCount "76"]
[EventDate "2024.12.21"]
[EventType "swiss"]
[EventCountry "NED"]
[SourceTitle "playchess.com"]
[Source "ChessBase"]
[SourceQuality "1"]
[TimeControl "40/5400+30:1800+30"]

{[%evp 9,76,20,17,24,31,25,22,37,18,18,25,39,37,9,11,0,8,-40,7,1,0,-3,0,0,0,-170,-141,-193,-124,-128,-136,-198,-189,-184,-185,-172,-137,-147,-146,-152,-138,-147,-141,-126,-77,-92,-91,-83,-95,-131,-131,-170,-117,-345,-343,-502,-475,-747,-739,-978,-916,-892,-863,-1358,-1335,-7412,-6360,-5285,-3366]} 1. d4 {[%emt 0:00:02]} e6 {[%emt 0:00:05]} 2. c4 {[%emt 0:01:48]} b6 {[%emt 0:00:09]} 3. e4 {[%emt 0:00:46]} Bb4+ {[%emt 0:00:09]} 4. Bd2 {[%emt 0:02:31]} Bxd2+ {[%emt 0:00:03]} 5. Qxd2 {[%emt 0:00:54]} d5 {[%emt 0:00:02]} 6. Bd3 {[%emt 0:23:45]} Nc6 {[%emt 0:00:13]} 7. Nf3 {[%emt 0:06:23]} dxe4 {[%emt 0:01:25]} 8. Bxe4 {[%emt 0:00:14]} Bb7 {[%emt 0:00:03]} 9. O-O {[%emt 0:14:48]} Nf6 {[%emt 0:01:00]} 10. Bxc6+ {[%emt 0:06:37]} Bxc6 {[%emt 0:00:06] [#]} 11. d5 $1 {[%emt 0:00:06]} Bb7 {[%emt 0:21:25]} 12. Nd4 {[%emt 0:09:46]} Qd7 {[%emt 0:06:10]} 13. Qb4 {[%emt 0:05:00]} (13. Nc3 $11) 13... O-O-O {[%emt 0:01:46]} (13... exd5 $15 {feels stronger.} 14. Re1+ Kd8) 14. Nc3 $11 {[%emt 0:04:03]} Kb8 {[%emt 0:15:41][%cal Re6d5]} 15. Qa3 {[%emt 0:00:54]} exd5 {[%emt 0:01:43]} 16. c5 {[%emt 0:00:34]} bxc5 {[%emt 0:00:30]} 17. Nb3 $2 {[%emt 0:15:44]} (17. Qxc5 $11 {and White has nothing to worry.} Qd6 18. Na4) 17... c4 $19 {[%emt 0:02:25]} 18. Nc5 {[%emt 0:00:07]} (18. Na5 $17 {might work better.}) 18... Qd6 {[%emt 0:08:30]} ({Black should play} 18... Qc6 $19 {and ...d4 should not be overlooked} 19. Nxb7 Kxb7 (19... Qxb7 20. b3 $17)) 19. Nb5 {[%emt 0:01:05][%csl LRa7,LRd6]} Qb6 {[%emt 0:00:08]} 20. Nd4 {[%emt 0:00:17]} (20. b3 $17 Ne4 (20... Qxb5 21. bxc4 dxc4 22. Rab1 $11) 21. Nxb7 Kxb7 22. bxc4) 20... Rhe8 {[%emt 0:02:50]} 21. b4 {[%emt 0:01:58]} Ka8 {[%emt 0:01:22]} 22. Rfe1 {[%emt 0:00:45]} Rxe1+ {[%emt 0:04:02]} 23. Rxe1 {[%emt 0:00:02]} Re8 {[%emt 0:02:49]} 24. Rxe8+ {[%emt 0:00:42]} Nxe8 {[%emt 0:00:02]} 25. Qe3 {[%emt 0:00:28]} Nd6 {[%emt 0:00:24]} 26. a3 {[%emt 0:00:38]} a5 {[%emt 0:03:58]} (26... Ne4 $6 27. f3 Nd6 (27... Nxc5 $2 28. Qe8+ $18) 28. Na4 $11) (26... Nc8 $142 27. h4 a5) 27. Na4 $17 {[%emt 0:00:28]} Qa7 {[%emt 0:03:36]} 28. b5 {[%emt 0:00:07]} Qb8 {[%emt 0:04:52][%cal Od6b5]} 29. Qc3 {[%emt 0:00:52][%cal Ob5b6]} Bc8 {[%emt 0:01:13]} 30. h3 {[%emt 0:03:19] [#]} Bd7 {[%emt 0:02:07]} ({Worse is} 30... Nxb5 31. Qxa5+ Qa7 32. Qxb5 Qxd4 33. Qa5+ Kb7 34. Qb5+ Ka7 35. Qa5+ Kb7 36. Qb5+ Ka8 37. Qa5+ Kb7 $11) (30... Ne4 $1 $19 {[%cal Re4c3]} 31. Qf3 (31. Qxa5+ Qa7 $17) 31... Be6) 31. Nc5 $2 {[%emt 0:00:05]} (31. Qf3 $17 {was the only chance.}) 31... Nxb5 $19 {[%emt 0:00:30]} 32. Nxb5 {[%emt 0:01:08]} (32. Qf3 $142 Be6 (32... Nxd4 33. Qxd5+ Bc6 34. Qxd4 $17) 33. Ndxe6 fxe6 34. Nxe6) 32... Qxb5 {[%emt 0:00:08]} 33. Nxd7 {[%emt 0:00:15]} (33. Qd4 $142 Bc6 34. Kh2) 33... Qxd7 {[%emt 0:00:06]} 34. Qxa5+ {[%emt 0:00:02] KQ-KQ. Black is two pawns up.} Kb7 {[%emt 0:00:10]} 35. Qb4+ {[%emt 0:00:05]} Ka6 {[%emt 0:00:10]} 36. a4 {[%emt 0:00:15]} Qc6 {[%emt 0:00:16]} 37. Qd2 {[%emt 0:01:31]} c3 {[%emt 0:00:11]} 38. Qc2 {[%emt 0:00:02]} Qc4 {[%emt 0:00:23]} 0-1

[Event "Festival Groningen-A 2024"]
[Site "Groningen"]
[Date "2024.12.27"]
[Round "6.6"]
[White "Elgersma, Onno"]
[Black "Smeets, Kobe"]
[Result "1-0"]
[ECO "A13"]
[WhiteElo "2322"]
[BlackElo "2349"]
[Annotator "TA"]
[PlyCount "93"]
[EventDate "2024.12.21"]
[EventType "swiss"]
[EventCountry "NED"]
[SourceTitle "playchess.com"]
[Source "ChessBase"]
[SourceQuality "1"]
[TimeControl "40/5400+30:1800+30"]

{[%evp 37,93,-49,0,-54,20,52,52,-58,-61,-73,-57,-56,-73,-80,-83,-89,-35,-41,-33,-181,-191,-153,-73,-205,-213,-306,-311,-307,-162,-313,-86,-153,-74,-94,0,0,0,0,0,0,0,0,0,0,0,0,0,0,0,0,78,78,29993,29994,29994,29995,29997,29998]} 1. Nf3 {[%emt 0:00:04]} d5 {[%emt 0:00:14]} 2. c4 {[%emt 0:00:11]} e6 {[%emt 0:00:48]} 3. g3 {[%emt 0:00:46]} dxc4 {[%emt 0:00:10]} 4. Qa4+ {[%emt 0:00:26]} Nd7 {[%emt 0:00:12]} 5. Qxc4 {[%emt 0:00:17]} a6 {[%emt 0:00:08]} 6. Qc2 {[%emt 0:00:16]} b5 {[%emt 0:00:56]} 7. Bg2 {[%emt 0:02:35]} Bb7 {[%emt 0:00:08]} 8. O-O {[%emt 0:03:31]} Ngf6 {[%emt 0:01:02]} 9. d3 {[%emt 0:05:47]} Bd6 {[%emt 0:05:05]} 10. e4 {[%emt 0:05:42]} Be7 {[%emt 0:05:45]} 11. Qe2 {[%emt 0:11:55]} O-O {[%emt 0:01:47]} 12. Rd1 {[%emt 0:01:59]} c5 {[%emt 0:03:42]} 13. Nc3 {[%emt 0:02:09]} Rc8 {[%emt 0:02:28]} 14. b3 {[%emt 0:06:55]} Qb6 {[%emt 0:01:57]} 15. Bb2 {[%emt 0:02:15]} Rfd8 {[%emt 0:00:59]} 16. Rac1 {[%emt 0:01:07]} Nb8 {[%emt 0:07:09]} 17. e5 {[%emt 0:05:54]} Nd5 {[%emt 0:01:31]} 18. Ne4 {[%emt 0:00:03]} Nc6 {[%emt 0:01:52]} 19. h4 {[%emt 0:02:41]} a5 {[%emt 0:11:55]} (19... h6 $15) 20. a3 {[%emt 0:08:38]} (20. Nd6 $1 $11) 20... a4 {[%emt 0:07:00]} (20... h6 $15) 21. bxa4 $11 {[%emt 0:01:42]} bxa4 {[%emt 0:00:03]} 22. Rc4 {[%emt 0:05:58]} ({White should play} 22. Rb1 $14) 22... Ba6 $1 $15 {[%emt 0:07:10]} 23. Rc2 {[%emt 0:07:52]} Nd4 {[%emt 0:03:47]} 24. Nxd4 {[%emt 0:00:29]} cxd4 {[%emt 0:00:02]} 25. Rdc1 {[%emt 0:09:48]} Rxc2 {[%emt 0:01:01]} 26. Rxc2 {[%emt 0:04:07]} Rb8 {[%emt 0:04:54]} (26... Qb3 $17 27. Nc5 Bxc5 28. Rxc5 Bxd3) 27. Kh2 {[%emt 0:03:21]} Qb3 {[%emt 0:06:45]} 28. Rd2 {[%emt 0:00:01] [#]} (28. Bf1 $1 $15) 28... Nc3 $1 $19 {[%emt 0:05:18]} (28... Bxa3 29. Bxa3 Qxa3 30. Ra2 $19) 29. Qg4 {[%emt 0:00:23] [#]} Nxe4 {[%emt 0:10:38]} (29... Nb1 $142 $1 {[%cal Rb1d2]} 30. Nf6+ Kh8) 30. Bxe4 {[%emt 0:00:04]} (30. Qxe4 $17 Bxa3 31. Bxa3 Qxa3 32. Qxd4) 30... Bxa3 $19 {[%emt 0:00:40]} 31. Bxd4 {[%emt 0:00:06]} (31. Bxa3 $142 Qxa3 32. Qd1) 31... Bc1 $19 {[%emt 0:01:06]} 32. Rd1 {[%emt 0:01:46]} Bb2 {[%emt 0:00:05]} (32... Qc2 $142 33. Qf3 a3) 33. Be3 $2 {[%emt 0:01:09]} (33. Ba7 {was called for.} Rc8 34. d4) 33... Qb4 $2 {[%emt 0:03:03]} (33... Bxe5 $19 34. Rc1 f5 (34... Bxd3 35. Bxd3 Qxd3 36. Qxa4 $15)) 34. d4 {[%emt 0:00:34]} (34. Ba7 $142 Rb7 35. Be3) 34... a3 {[%emt 0:00:58]} ({Black should try} 34... Bc4 35. Bc2 Bb3 (35... a3 36. Bh6 $11) 36. Bxb3 axb3) 35. d5 $17 {[%emt 0:00:29]} exd5 {[%emt 0:01:15]} (35... Bxe5 36. dxe6 Bc4 37. Qh5 Bxe6 38. Bxh7+ (38. Qxe5 Qf8 $18) 38... Kh8 39. Bf5+ Kg8 40. Qh7+ Kf8 41. Bg5 Bxg3+ 42. Kxg3 $18) (35... Bc4 $17 {and ...Bxd5 should not be overlooked} 36. Ba7 Rf8) 36. Rxd5 $11 {[%emt 0:00:11]} a2 {[%emt 0:03:02]} 37. e6 $1 {[%emt 0:00:23]} Qe7 $1 {[%emt 0:03:30]} (37... a1=B $2 38. exf7+ (38. Bc5 Qb7 $18) 38... Kf8 39. Bc5+ $18) (37... a1=Q $2 38. Qf5 $18) 38. exf7+ {[%emt 0:01:52]} Qxf7 {[%emt 0:00:05]} 39. Rh5 {[%emt 0:03:07]} h6 $1 {[%emt 0:00:56]} (39... a1=B $2 40. Bxh7+ (40. Bd5 Qxd5 41. Rxd5 Kh8 $18) 40... Kf8 41. Bc5+ Ke8 42. Bg6 $18) 40. Bd5 {[%emt 0:03:18]} Qxd5 {[%emt 0:00:38]} (40... a1=Q $2 41. Bxf7+ Kxf7 42. Qf4+ Bf6 43. Qxb8 $18) 41. Rxd5 {[%emt 0:30:05]} a1=Q {[%emt 0:30:06]} (41... a1=B $2 42. Bxh6 Rf8 43. Qe6+ Kh7 44. Be3 $18) 42. Qe6+ {[%emt 0:00:00]} Kh7 {[%emt 0:00:00]} 43. Rd7 {[%emt 0:00:00]} Bf6 {[%emt 0:00:00]} (43... Be2 $1 $11 {keeps the balance.}) 44. Ra7 $16 {[%emt 0:00:00]} Rb1 $2 {[%emt 0:00:00][%mdl 8192]} (44... Qe5 $16 45. Qxa6 Rb4) 45. Qf5+ {[%emt 0:00:00]} ({Inferior is} 45. Qxa6 Rh1+ 46. Kg2 Qg1+ 47. Kf3 Qd1+ 48. Kg2 Rh3 49. Kxh3 Qh1+ 50. Kg4 Qe4+ 51. Kh3 Qh1+ 52. Kg4 Qe4+ 53. Kh3 Qh1+ $11) 45... Kg8 {[%emt 0:00:00]} 46. Ra8+ {[%emt 0:00:00]} Kf7 {[%emt 0:00:00]} 47. Qd5+ {[%emt 0:00:00]} 1-0